[Event "Polofinale MCR junioru 2023"]
[Site "Czech Republic"]
[Date "2023.11.14"]
[Round "4.23"]
[White "Zezula, Jakub"]
[Black "Sprinar, Michal"]
[Result "1/2-1/2"]
[TimeControl "90 min per 40 moves + 15 min + 30 sec / move from move 1"]
[WhiteFideId "23723203"]
[BlackFideId "23714190"]
[WhiteElo "2002"]
[BlackElo "1742"]

1. e4 {[%clk 01:30:57]} {[%emt 00:00:01]} e6 {[%clk 01:30:57]} {[%emt
00:00:04]} 2. d4 {[%clk 01:31:19]} {[%emt 00:00:09]} d5 {[%clk 01:31:24]}
{[%emt 00:00:03]} 3. Nd2 {[%clk 01:31:43]} {[%emt 00:00:06]} Nf6 {[%clk
01:31:49]} {[%emt 00:00:04]} 4. e5 {[%clk 01:32:08]} {[%emt 00:00:06]} Nfd7
{[%clk 01:32:16]} {[%emt 00:00:03]} 5. Bd3 {[%clk 01:32:33]} {[%emt 00:00:05]}
c5 {[%clk 01:32:43]} {[%emt 00:00:04]} 6. c3 {[%clk 01:32:58]} {[%emt
00:00:05]} Nc6 {[%clk 01:33:10]} {[%emt 00:00:03]} 7. Ngf3 {[%clk 01:33:20]}
{[%emt 00:00:07]} cxd4 {[%clk 01:33:23]} {[%emt 00:00:17]} 8. cxd4 {[%clk
01:33:42]} {[%emt 00:00:08]} f6 {[%clk 01:33:48]} {[%emt 00:00:05]} 9. O-O
{[%clk 01:09:11]} {[%emt 00:25:02]} Be7 {[%clk 01:23:57]} {[%emt 00:10:20]} 10.
exf6 {[%clk 00:55:26]} {[%emt 00:14:16]} Nxf6 {[%clk 01:22:08]} {[%emt
00:02:19]} 11. Re1 {[%clk 00:53:29]} {[%emt 00:02:27]} O-O {[%clk 01:22:08]}
{[%emt 00:00:30]} 12. Nf1 {[%clk 00:53:47]} {[%emt 00:00:12]} h6 {[%clk
01:11:25]} {[%emt 00:11:14]} 13. Ng3 {[%clk 00:52:37]} {[%emt 00:01:39]} Bd7
{[%clk 00:53:11]} {[%emt 00:18:44]} 14. Bf4 {[%clk 00:45:51]} {[%emt 00:07:10]}
Ng4 {[%clk 00:45:56]} {[%emt 00:07:48]} 15. Be5 {[%clk 00:44:09]} {[%emt
00:02:16]} Ncxe5 {[%clk 00:44:22]} {[%emt 00:02:04]} 16. dxe5 {[%clk 00:44:19]}
{[%emt 00:00:19]} Qb6 {[%clk 00:43:12]} {[%emt 00:01:38]} 17. Rf1 {[%clk
00:41:37]} {[%emt 00:03:14]} Bh4 {[%clk 00:21:27]} {[%emt 00:22:15]} 18. Bb1
{[%clk 00:34:48]} {[%emt 00:07:20]} Bxg3 {[%clk 00:19:28]} {[%emt 00:02:29]} 19.
hxg3 {[%clk 00:35:07]} {[%emt 00:00:10]} Qxb2 {[%clk 00:16:32]} {[%emt
00:03:25]} 20. Qd3 {[%clk 00:27:23]} {[%emt 00:08:14]} Nxe5 {[%clk 00:16:43]}
{[%emt 00:00:19]} 21. Qh7+ {[%clk 00:26:44]} {[%emt 00:01:09]} Kf7 {[%clk
00:17:07]} {[%emt 00:00:06]} 22. Re1 {[%clk 00:24:15]} {[%emt 00:02:59]} Nxf3+
{[%clk 00:16:33]} {[%emt 00:01:04]} 23. gxf3 {[%clk 00:24:40]} {[%emt
00:00:06]} Qf6 {[%clk 00:16:52]} {[%emt 00:00:09]} 24. Bc2 {[%clk 00:23:01]}
{[%emt 00:02:11]} Rh8 {[%clk 00:15:41]} {[%emt 00:01:38]} 25. Qd3 {[%clk
00:23:22]} {[%emt 00:00:11]} g6 {[%clk 00:14:26]} {[%emt 00:01:44]} 26. f4
{[%clk 00:23:02]} {[%emt 00:00:51]} Rac8 {[%clk 00:10:01]} {[%emt 00:04:55]} 27.
Rab1 {[%clk 00:23:23]} {[%emt 00:00:09]} Rc3 {[%clk 00:08:25]} {[%emt
00:02:06]} 28. Qd2 {[%clk 00:23:37]} {[%emt 00:00:16]} b6 {[%clk 00:08:49]}
{[%emt 00:00:06]} 29. Re5 {[%clk 00:23:37]} {[%emt 00:00:30]} Rhc8 {[%clk
00:09:00]} {[%emt 00:00:19]} 30. Bb3 {[%clk 00:23:39]} {[%emt 00:00:28]} R3c5
{[%clk 00:03:38]} {[%emt 00:05:52]} 31. Rbe1 {[%clk 00:23:31]} {[%emt
00:00:37]} a5 {[%clk 00:03:03]} {[%emt 00:01:05]} 32. a4 {[%clk 00:23:44]}
{[%emt 00:00:17]} h5 {[%clk 00:00:42]} {[%emt 00:02:51]} 33. Kg2 {[%clk
00:20:16]} {[%emt 00:03:58]} R8c7 {[%clk 00:00:39]} {[%emt 00:00:33]} 34. R1e3
{[%clk 00:19:00]} {[%emt 00:01:47]} Rc8 {[%clk 00:00:44]} {[%emt 00:00:25]}
1/2-1/2

[Event "Polofinale MCR junioru 2023"]
[Site "Czech Republic"]
[Date "2023.11.14"]
[Round "4.24"]
[White "Simunek, Jakub Simon"]
[Black "Urbansky, Stepan"]
[Result "1-0"]
[TimeControl "90 min per 40 moves + 15 min + 30 sec / move from move 1"]
[WhiteFideId "23709464"]
[BlackFideId "23761741"]
[WhiteElo "1970"]
[BlackElo "1675"]

1. e4 {[%clk 01:30:57]} {[%emt 00:00:03]} c5 {[%clk 01:28:40]} {[%emt
00:02:20]} 2. Nf3 {[%clk 01:31:16]} {[%emt 00:00:12]} d6 {[%clk 01:28:49]}
{[%emt 00:00:20]} 3. Bb5+ {[%clk 01:31:40]} {[%emt 00:00:07]} Bd7 {[%clk
01:29:10]} {[%emt 00:00:09]} 4. Bxd7+ {[%clk 01:32:05]} {[%emt 00:00:06]} Qxd7
{[%clk 01:29:33]} {[%emt 00:00:06]} 5. c4 {[%clk 01:32:30]} {[%emt 00:00:05]}
Nf6 {[%clk 01:28:28]} {[%emt 00:01:34]} 6. Nc3 {[%clk 01:32:56]} {[%emt
00:00:05]} g6 {[%clk 01:28:06]} {[%emt 00:00:52]} 7. d4 {[%clk 01:33:17]}
{[%emt 00:00:09]} cxd4 {[%clk 01:28:30]} {[%emt 00:00:06]} 8. Nxd4 {[%clk
01:33:46]} {[%emt 00:00:01]} Bg7 {[%clk 01:28:46]} {[%emt 00:00:14]} 9. f3
{[%clk 01:34:10]} {[%emt 00:00:06]} O-O {[%clk 01:28:33]} {[%emt 00:00:42]} 10.
Be3 {[%clk 01:34:33]} {[%emt 00:00:08]} Nc6 {[%clk 01:27:06]} {[%emt 00:01:56]}
11. O-O {[%clk 01:34:56]} {[%emt 00:00:07]} Rfc8 {[%clk 01:26:35]} {[%emt
00:01:02]} 12. b3 {[%clk 01:34:53]} {[%emt 00:00:32]} a6 {[%clk 01:24:24]}
{[%emt 00:02:41]} 13. Qd3 {[%clk 01:33:22]} {[%emt 00:02:01]} Qd8 {[%clk
01:14:42]} {[%emt 00:10:12]} 14. Rac1 {[%clk 01:29:35]} {[%emt 00:04:17]} Qa5
{[%clk 01:14:08]} {[%emt 00:01:03]} 15. Na4 {[%clk 00:58:41]} {[%emt 00:31:25]}
Nd7 {[%clk 01:10:10]} {[%emt 00:04:28]} 16. Nxc6 {[%clk 00:54:54]} {[%emt
00:04:17]} Rxc6 {[%clk 01:07:11]} {[%emt 00:03:29]} 17. Qd5 {[%clk 00:55:14]}
{[%emt 00:00:10]} Qc7 {[%clk 01:03:22]} {[%emt 00:04:18]} 18. Nc3 {[%clk
00:48:44]} {[%emt 00:07:01]} Rc8 {[%clk 00:51:12]} {[%emt 00:12:41]} 19. Qd3
{[%clk 00:45:52]} {[%emt 00:03:21]} Bxc3 {[%clk 00:47:41]} {[%emt 00:04:01]} 20.
Rxc3 {[%clk 00:45:51]} {[%emt 00:00:31]} b5 {[%clk 00:48:04]} {[%emt 00:00:07]}
21. Rfc1 {[%clk 00:46:14]} {[%emt 00:00:07]} Ne5 {[%clk 00:47:57]} {[%emt
00:00:37]} 22. Qd4 {[%clk 00:42:03]} {[%emt 00:04:41]} bxc4 {[%clk 00:41:41]}
{[%emt 00:06:46]} 23. Bh6 {[%clk 00:32:45]} {[%emt 00:09:47]} f6 {[%clk
00:38:47]} {[%emt 00:03:25]} 24. Qd5+ {[%clk 00:31:46]} {[%emt 00:01:29]} Kh8
{[%clk 00:38:59]} {[%emt 00:00:18]} 25. Rxc4 {[%clk 00:28:58]} {[%emt
00:03:19]} Nxc4 {[%clk 00:37:47]} {[%emt 00:01:42]} 26. Qf7 {[%clk 00:29:08]}
{[%emt 00:00:20]} Rg8 {[%clk 00:37:55]} {[%emt 00:00:22]} 27. Rxc4 {[%clk
00:29:29]} {[%emt 00:00:08]} Rxc4 {[%clk 00:37:40]} {[%emt 00:00:45]} 28. bxc4
{[%clk 00:29:58]} {[%emt 00:00:02]} Qa5 {[%clk 00:35:08]} {[%emt 00:03:02]} 29.
Kf2 {[%clk 00:29:50]} {[%emt 00:00:37]} Qxa2+ {[%clk 00:35:11]} {[%emt
00:00:27]} 30. Kg3 {[%clk 00:29:38]} {[%emt 00:00:42]} Qb2 {[%clk 00:34:57]}
{[%emt 00:00:43]} 31. h4 {[%clk 00:28:09]} {[%emt 00:02:00]} a5 {[%clk
00:33:45]} {[%emt 00:01:42]} 32. Bf8 {[%clk 00:26:26]} {[%emt 00:02:13]} Qe5+
{[%clk 00:18:23]} {[%emt 00:15:52]} 33. Kh3 {[%clk 00:26:33]} {[%emt 00:00:24]}
g5 {[%clk 00:18:19]} {[%emt 00:00:34]} 34. Bxe7 {[%clk 00:26:06]} {[%emt
00:00:57]} a4 {[%clk 00:15:13]} {[%emt 00:03:37]} 35. Bxf6+ {[%clk 00:26:14]}
{[%emt 00:00:22]} Qxf6 {[%clk 00:15:38]} {[%emt 00:00:04]} 36. Qxf6+ {[%clk
00:26:43]} {[%emt 00:00:02]} Rg7 {[%clk 00:16:03]} {[%emt 00:00:04]} 37. Qxd6
{[%clk 00:26:42]} {[%emt 00:00:31]} gxh4 {[%clk 00:16:21]} {[%emt 00:00:13]} 38.
Qa6 {[%clk 00:26:39]} {[%emt 00:00:32]} 1-0

[Event "Polofinale MCR junioru 2023"]
[Site "Czech Republic"]
[Date "2023.11.14"]
[Round "4.25"]
[White "Valdman, Jakub"]
[Black "Trojan, Matyas"]
[Result "0-1"]
[TimeControl "90 min per 40 moves + 15 min + 30 sec / move from move 1"]
[WhiteFideId "23718196"]
[BlackFideId "23710764"]
[WhiteElo "1594"]
[BlackElo "1957"]

1. e4 {[%clk 01:30:57]} {[%emt 00:00:02]} e5 {[%clk 01:29:04]} {[%emt
00:01:56]} 2. Nf3 {[%clk 01:31:19]} {[%emt 00:00:08]} Nc6 {[%clk 01:29:31]}
{[%emt 00:00:03]} 3. Bb5 {[%clk 01:31:42]} {[%emt 00:00:07]} a6 {[%clk
01:29:55]} {[%emt 00:00:06]} 4. Ba4 {[%clk 01:32:08]} {[%emt 00:00:04]} Nf6
{[%clk 01:30:19]} {[%emt 00:00:06]} 5. O-O {[%clk 01:32:31]} {[%emt 00:00:08]}
Be7 {[%clk 01:30:44]} {[%emt 00:00:03]} 6. Re1 {[%clk 01:32:48]} {[%emt
00:00:13]} b5 {[%clk 01:31:09]} {[%emt 00:00:05]} 7. Bb3 {[%clk 01:33:13]}
{[%emt 00:00:06]} O-O {[%clk 01:31:27]} {[%emt 00:00:11]} 8. h3 {[%clk
01:33:13]} {[%emt 00:00:30]} Bb7 {[%clk 01:31:51]} {[%emt 00:00:06]} 9. d3
{[%clk 01:32:56]} {[%emt 00:00:48]} d6 {[%clk 01:32:11]} {[%emt 00:00:10]} 10.
Nbd2 {[%clk 01:32:02]} {[%emt 00:01:24]} Na5 {[%clk 01:32:30]} {[%emt
00:00:11]} 11. Nf1 {[%clk 01:30:53]} {[%emt 00:01:39]} Re8 {[%clk 01:30:33]}
{[%emt 00:02:26]} 12. Ng3 {[%clk 01:27:41]} {[%emt 00:03:43]} h6 {[%clk
01:28:29]} {[%emt 00:02:33]} 13. Bd2 {[%clk 01:21:45]} {[%emt 00:06:26]} Nxb3
{[%clk 01:28:48]} {[%emt 00:00:12]} 14. axb3 {[%clk 01:22:04]} {[%emt
00:00:12]} Bf8 {[%clk 01:27:21]} {[%emt 00:01:51]} 15. c4 {[%clk 01:15:07]}
{[%emt 00:07:33]} c5 {[%clk 01:24:29]} {[%emt 00:03:21]} 16. Qc2 {[%clk
00:50:55]} {[%emt 00:24:43]} Qc7 {[%clk 01:12:28]} {[%emt 00:12:32]} 17. Nh4
{[%clk 00:40:16]} {[%emt 00:11:08]} g6 {[%clk 01:09:31]} {[%emt 00:03:28]} 18.
Qc1 {[%clk 00:35:39]} {[%emt 00:05:07]} Kh7 {[%clk 01:09:37]} {[%emt 00:00:24]}
19. Rf1 {[%clk 00:23:40]} {[%emt 00:12:29]} Qd8 {[%clk 00:59:15]} {[%emt
00:10:52]} 20. Nf3 {[%clk 00:22:43]} {[%emt 00:01:26]} Bg7 {[%clk 00:59:05]}
{[%emt 00:00:40]} 21. Nh2 {[%clk 00:21:03]} {[%emt 00:02:11]} a5 {[%clk
00:34:24]} {[%emt 00:25:12]} 22. Qc2 {[%clk 00:15:58]} {[%emt 00:05:34]} Qb6
{[%clk 00:32:41]} {[%emt 00:02:12]} 23. f4 {[%clk 00:14:36]} {[%emt 00:01:52]}
a4 {[%clk 00:26:59]} {[%emt 00:06:13]} 24. bxa4 {[%clk 00:14:27]} {[%emt
00:00:39]} bxc4 {[%clk 00:22:04]} {[%emt 00:05:24]} 25. Qxc4 {[%clk 00:11:59]}
{[%emt 00:02:58]} d5 {[%clk 00:20:58]} {[%emt 00:01:36]} 26. Qc2 {[%clk
00:09:00]} {[%emt 00:03:29]} c4+ {[%clk 00:20:29]} {[%emt 00:01:00]} 27. Kh1
{[%clk 00:09:25]} {[%emt 00:00:04]} cxd3 {[%clk 00:20:26]} {[%emt 00:00:33]} 28.
Qxd3 {[%clk 00:09:41]} {[%emt 00:00:14]} dxe4 {[%clk 00:19:17]} {[%emt
00:01:39]} 29. Qe3 {[%clk 00:08:53]} {[%emt 00:01:18]} Qxe3 {[%clk 00:16:57]}
{[%emt 00:02:51]} 30. Bxe3 {[%clk 00:09:21]} {[%emt 00:00:01]} Nd5 {[%clk
00:17:17]} {[%emt 00:00:11]} 31. Bc1 {[%clk 00:08:57]} {[%emt 00:00:54]} f5
{[%clk 00:17:15]} {[%emt 00:00:31]} 32. Ra3 {[%clk 00:03:19]} {[%emt 00:06:09]}
Ba6 {[%clk 00:13:13]} {[%emt 00:04:32]} 0-1

[Event "Polofinale MCR junioru 2023"]
[Site "Czech Republic"]
[Date "2023.11.14"]
[Round "4.26"]
[White "Stocek, Martin"]
[Black "Svadlenka, Dominik"]
[Result "1-0"]
[TimeControl "90 min per 40 moves + 15 min + 30 sec / move from move 1"]
[WhiteFideId "380121"]
[BlackFideId "23716258"]
[WhiteElo "2125"]
[BlackElo "1725"]

1. d4 {[%clk 01:30:57]} {[%emt 00:00:02]} d5 {[%clk 01:30:56]} {[%emt
00:00:05]} 2. c4 {[%clk 01:31:20]} {[%emt 00:00:07]} e6 {[%clk 01:31:22]}
{[%emt 00:00:05]} 3. Nc3 {[%clk 01:31:46]} {[%emt 00:00:04]} Nf6 {[%clk
01:31:48]} {[%emt 00:00:04]} 4. Nf3 {[%clk 01:32:08]} {[%emt 00:00:07]} Be7
{[%clk 01:32:13]} {[%emt 00:00:05]} 5. Bf4 {[%clk 01:32:30]} {[%emt 00:00:08]}
O-O {[%clk 01:32:19]} {[%emt 00:00:25]} 6. e3 {[%clk 01:32:17]} {[%emt
00:00:43]} b6 {[%clk 01:31:06]} {[%emt 00:01:43]} 7. cxd5 {[%clk 01:28:38]}
{[%emt 00:04:10]} exd5 {[%clk 01:29:35]} {[%emt 00:02:01]} 8. Be2 {[%clk
01:28:58]} {[%emt 00:00:09]} Bb7 {[%clk 01:27:24]} {[%emt 00:02:41]} 9. O-O
{[%clk 01:29:12]} {[%emt 00:00:15]} c5 {[%clk 01:23:31]} {[%emt 00:04:24]} 10.
Rc1 {[%clk 01:25:08]} {[%emt 00:04:35]} Nc6 {[%clk 01:15:57]} {[%emt 00:08:04]}
11. h3 {[%clk 01:22:01]} {[%emt 00:03:37]} Rc8 {[%clk 01:15:08]} {[%emt
00:01:20]} 12. dxc5 {[%clk 01:11:39]} {[%emt 00:10:52]} bxc5 {[%clk 01:15:10]}
{[%emt 00:00:27]} 13. Qb3 {[%clk 01:11:38]} {[%emt 00:00:31]} Qb6 {[%clk
01:13:24]} {[%emt 00:02:17]} 14. Qxb6 {[%clk 01:07:29]} {[%emt 00:04:39]} axb6
{[%clk 01:13:38]} {[%emt 00:00:15]} 15. Rfd1 {[%clk 01:07:21]} {[%emt
00:00:38]} Rfd8 {[%clk 00:40:41]} {[%emt 00:33:28]} 16. a3 {[%clk 00:49:43]}
{[%emt 00:18:08]} Bd6 {[%clk 00:23:44]} {[%emt 00:17:27]} 17. Bg5 {[%clk
00:44:55]} {[%emt 00:05:17]} Na5 {[%clk 00:20:10]} {[%emt 00:04:05]} 18. Nb5
{[%clk 00:34:38]} {[%emt 00:10:47]} Bb8 {[%clk 00:18:16]} {[%emt 00:02:23]} 19.
Nh4 {[%clk 00:19:57]} {[%emt 00:15:11]} Be5 {[%clk 00:15:45]} {[%emt 00:03:02]}
20. Nf5 {[%clk 00:20:25]} {[%emt 00:00:02]} Kf8 {[%clk 00:13:44]} {[%emt
00:02:31]} 21. f4 {[%clk 00:19:55]} {[%emt 00:00:59]} Bb8 {[%clk 00:13:05]}
{[%emt 00:01:10]} 22. Bf3 {[%clk 00:16:57]} {[%emt 00:03:27]} Bc6 {[%clk
00:11:54]} {[%emt 00:01:41]} 23. Nc3 {[%clk 00:16:21]} {[%emt 00:01:07]} Nc4
{[%clk 00:10:36]} {[%emt 00:01:48]} 24. b3 {[%clk 00:13:40]} {[%emt 00:03:11]}
Nxa3 {[%clk 00:10:28]} {[%emt 00:00:38]} 25. Bxf6 {[%clk 00:12:45]} {[%emt
00:01:25]} gxf6 {[%clk 00:10:52]} {[%emt 00:00:06]} 26. Bxd5 {[%clk 00:12:48]}
{[%emt 00:00:27]} Bd7 {[%clk 00:09:04]} {[%emt 00:02:19]} 27. Be4 {[%clk
00:10:32]} {[%emt 00:02:46]} Be6 {[%clk 00:03:27]} {[%emt 00:06:07]} 28. Rxd8+
{[%clk 00:10:32]} {[%emt 00:00:30]} Rxd8 {[%clk 00:03:52]} {[%emt 00:00:05]} 29.
Ra1 {[%clk 00:09:42]} {[%emt 00:01:19]} b5 {[%clk 00:04:19]} {[%emt 00:00:03]}
30. Rxa3 {[%clk 00:08:20]} {[%emt 00:01:53]} b4 {[%clk 00:04:46]} {[%emt
00:00:03]} 31. Ra5 {[%clk 00:08:28]} {[%emt 00:00:19]} bxc3 {[%clk 00:05:12]}
{[%emt 00:00:07]} 32. Rxc5 {[%clk 00:08:44]} {[%emt 00:00:14]} Bxb3 {[%clk
00:02:41]} {[%emt 00:03:00]} 33. Rxc3 {[%clk 00:08:59]} {[%emt 00:00:14]} Be6
{[%clk 00:03:03]} {[%emt 00:00:09]} 34. Nd4 {[%clk 00:07:12]} {[%emt 00:02:16]}
Kg8 {[%clk 00:02:25]} {[%emt 00:01:09]} 35. Nc6 {[%clk 00:06:09]} {[%emt
00:01:33]} Rd1+ {[%clk 00:02:27]} {[%emt 00:00:28]} 36. Kf2 {[%clk 00:05:29]}
{[%emt 00:01:10]} Bd6 {[%clk 00:02:34]} {[%emt 00:00:24]} 37. Rd3 {[%clk
00:04:31]} {[%emt 00:01:28]} Rxd3 {[%clk 00:02:39]} {[%emt 00:00:25]} 38. Bxd3
{[%clk 00:04:59]} {[%emt 00:00:01]} h6 {[%clk 00:02:25]} {[%emt 00:00:44]} 39.
Nd4 {[%clk 00:05:19]} {[%emt 00:00:11]} Kf8 {[%clk 00:01:55]} {[%emt 00:01:00]}
40. Kf3 {[%clk 00:04:46]} {[%emt 00:01:03]} Ke7 {[%clk 00:01:39]} {[%emt
00:00:46]} 41. Bf5 {[%clk 00:04:34]} {[%emt 00:00:42]} Bd5+ {[%clk 00:01:24]}
{[%emt 00:00:45]} 42. e4 {[%clk 00:12:51]} {[%emt 00:07:42]} Bc4 {[%clk
00:16:39]} {[%emt 00:00:45]} 43. Bc8 {[%clk 00:11:33]} {[%emt 00:01:48]} Ke8
{[%clk 00:15:50]} {[%emt 00:01:20]} 44. Bb7 {[%clk 00:11:49]} {[%emt 00:00:12]}
Bf8 {[%clk 00:14:14]} {[%emt 00:02:07]} 45. Bc6+ {[%clk 00:11:16]} {[%emt
00:01:03]} Ke7 {[%clk 00:13:42]} {[%emt 00:01:03]} 46. Nf5+ {[%clk 00:11:16]}
{[%emt 00:00:30]} Ke6 {[%clk 00:12:40]} {[%emt 00:01:32]} 47. Bb7 {[%clk
00:11:38]} {[%emt 00:00:07]} Bb5 {[%clk 00:12:53]} {[%emt 00:00:17]} 48. Nd4+
{[%clk 00:11:47]} {[%emt 00:00:21]} 1-0

[Event "Polofinale MCR junioru 2023"]
[Site "Czech Republic"]
[Date "2023.11.14"]
[Round "4.27"]
[White "Nespurek, Jakub"]
[Black "Vana, Jan"]
[Result "1-0"]
[TimeControl "90 min per 40 moves + 15 min + 30 sec / move from move 1"]
[WhiteFideId "391816"]
[BlackFideId "23726016"]
[WhiteElo "1680"]
[BlackElo "1965"]

1. e4 {[%clk 01:30:55]} {[%emt 00:00:05]} c5 {[%clk 01:30:57]} {[%emt
00:00:03]} 2. c3 {[%clk 01:31:04]} {[%emt 00:00:21]} Nf6 {[%clk 01:31:21]}
{[%emt 00:00:06]} 3. e5 {[%clk 01:31:19]} {[%emt 00:00:16]} Nd5 {[%clk
01:31:46]} {[%emt 00:00:04]} 4. d4 {[%clk 01:31:40]} {[%emt 00:00:09]} cxd4
{[%clk 01:32:11]} {[%emt 00:00:05]} 5. cxd4 {[%clk 01:32:06]} {[%emt 00:00:04]}
d6 {[%clk 01:32:35]} {[%emt 00:00:06]} 6. Nf3 {[%clk 01:31:48]} {[%emt
00:00:48]} Nc6 {[%clk 01:32:36]} {[%emt 00:00:29]} 7. Bc4 {[%clk 01:30:36]}
{[%emt 00:01:43]} Nb6 {[%clk 01:33:05]} {[%emt 00:00:02]} 8. Bb5 {[%clk
01:30:53]} {[%emt 00:00:13]} Bd7 {[%clk 01:33:23]} {[%emt 00:00:12]} 9. exd6
{[%clk 01:28:32]} {[%emt 00:02:50]} e6 {[%clk 01:33:47]} {[%emt 00:00:05]} 10.
Nc3 {[%clk 01:23:47]} {[%emt 00:05:15]} Bxd6 {[%clk 01:33:32]} {[%emt
00:00:46]} 11. Ne4 {[%clk 01:18:18]} {[%emt 00:05:59]} Be7 {[%clk 01:29:53]}
{[%emt 00:04:08]} 12. O-O {[%clk 01:16:50]} {[%emt 00:01:59]} a6 {[%clk
01:20:23]} {[%emt 00:10:00]} 13. Bd3 {[%clk 01:15:30]} {[%emt 00:01:50]} Nb4
{[%clk 01:16:24]} {[%emt 00:04:29]} 14. Ne5 {[%clk 01:01:08]} {[%emt 00:14:51]}
Nxd3 {[%clk 01:12:51]} {[%emt 00:04:03]} 15. Qxd3 {[%clk 00:50:48]} {[%emt
00:10:49]} f5 {[%clk 01:02:43]} {[%emt 00:10:39]} 16. Qg3 {[%clk 00:45:38]}
{[%emt 00:05:40]} Kf8 {[%clk 00:32:57]} {[%emt 00:30:16]} 17. Ng5 {[%clk
00:42:30]} {[%emt 00:03:37]} Qe8 {[%clk 00:11:21]} {[%emt 00:22:06]} 18. Ngf7
{[%clk 00:42:39]} {[%emt 00:00:21]} Rg8 {[%clk 00:10:47]} {[%emt 00:01:03]} 19.
Nh6 {[%clk 00:41:48]} {[%emt 00:01:22]} Rh8 {[%clk 00:06:39]} {[%emt 00:04:38]}
20. Nef7 {[%clk 00:41:03]} {[%emt 00:01:14]} Bf6 {[%clk 00:05:25]} {[%emt
00:01:44]} 21. Nxh8 {[%clk 00:40:23]} {[%emt 00:01:10]} gxh6 {[%clk 00:04:59]}
{[%emt 00:00:56]} 22. Qd6+ {[%clk 00:40:30]} {[%emt 00:00:23]} Kg8 {[%clk
00:03:34]} {[%emt 00:01:55]} 23. Qxb6 {[%clk 00:40:35]} {[%emt 00:00:26]} Bc6
{[%clk 00:03:20]} {[%emt 00:00:43]} 24. Bxh6 {[%clk 00:36:56]} {[%emt
00:04:09]} Kxh8 {[%clk 00:03:27]} {[%emt 00:00:24]} 25. Rac1 {[%clk 00:35:07]}
{[%emt 00:02:19]} Qg6 {[%clk 00:02:33]} {[%emt 00:01:24]} 26. Rxc6 {[%clk
00:34:33]} {[%emt 00:01:04]} bxc6 {[%clk 00:02:39]} {[%emt 00:00:24]} 27. Qxc6
{[%clk 00:34:24]} {[%emt 00:00:39]} Rg8 {[%clk 00:02:19]} {[%emt 00:00:50]} 28.
Be3 {[%clk 00:34:25]} {[%emt 00:00:29]} Qg4 {[%clk 00:02:02]} {[%emt 00:00:48]}
29. f4 {[%clk 00:24:22]} {[%emt 00:10:33]} Qe2 {[%clk 00:01:46]} {[%emt
00:00:46]} 30. Bf2 {[%clk 00:23:43]} {[%emt 00:01:09]} Qg4 {[%clk 00:00:32]}
{[%emt 00:01:45]} 31. g3 {[%clk 00:22:36]} {[%emt 00:01:37]} Qxf4 {[%clk
00:00:33]} {[%emt 00:00:29]} 32. Qxe6 {[%clk 00:22:47]} {[%emt 00:00:18]} Qg5
{[%clk 00:00:36]} {[%emt 00:00:28]} 33. Be3 {[%clk 00:21:07]} {[%emt 00:02:10]}
Qg7 {[%clk 00:00:42]} {[%emt 00:00:24]} 34. Qxf5 {[%clk 00:21:07]} {[%emt
00:00:30]} Bxd4 {[%clk 00:00:44]} {[%emt 00:00:28]} 35. Bxd4 {[%clk 00:21:19]}
{[%emt 00:00:18]} Qxd4+ {[%clk 00:01:13]} {[%emt 00:00:01]} 36. Qf2 {[%clk
00:21:33]} {[%emt 00:00:16]} Qd5 {[%clk 00:00:59]} {[%emt 00:00:44]} 37. Qf6+
{[%clk 00:21:02]} {[%emt 00:01:00]} Rg7 {[%clk 00:01:25]} {[%emt 00:00:04]} 38.
Qc3 {[%clk 00:20:35]} {[%emt 00:00:58]} Kg8 {[%clk 00:00:34]} {[%emt 00:01:21]}
39. Qc8+ {[%clk 00:20:52]} {[%emt 00:00:12]} 1-0